fUST/lending_fUST_20250723
["ID","MTS","AMOUNT","RATE_DAILY","PERIOD"]
[374139434,1753228248489,-460.0,0.00019537,2]
[374139435,1753228248499,-2253.65,0.00019537,2]
[374139436,1753228248509,-1340.59,0.00019537,2]
[374139437,1753228248520,-1293.49,0.00019537,2]
[374139438,1753228248529,-200.52802804,0.00019539,2]
[374139439,1753228248538,-3202.65456407,0.00019555,2]
[374139440,1753228248547,-151.0,0.000198,2]
[374139441,1753228248557,-1157.88,0.00019804,2]
[374139442,1753228248566,-1954.5,0.00019805,2]
[374139443,1753228248576,-264.55,0.00019805,2]
[374139444,1753228248585,-1501.49,0.00019805,2]
[374139445,1753228248594,-1407.56,0.00019805,2]
[374139446,1753228248605,-460.0,0.00019805,2]
[374139447,1753228248617,-536.89,0.00019805,2]
[374139448,1753228248627,-460.0,0.00019807,2]
[374139449,1753228248637,-3206.05,0.00019807,2]
[374139450,1753228248646,-460.0,0.00019807,2]
[374139451,1753228248657,-460.0,0.00019807,2]
[374139452,1753228248667,-1605.14,0.00019807,2]
[374139453,1753228248676,-460.0,0.00019807,2]
[374139454,1753228248689,-460.0,0.00019807,2]
[374139455,1753228248700,-460.95,0.00019807,2]
[374139456,1753228248709,-460.0,0.00019807,2]
[374139457,1753228248719,-416.56209813,0.00019807,2]
[374139458,1753228248728,-460.0,0.00019807,2]
[374139459,1753228248738,-460.0,0.00019807,2]
[374139460,1753228248747,-156.19163889,0.00019807,2]
[374139461,1753228248757,-896.25,0.00019807,2]
[374139462,1753228248767,-514.65,0.00019807,2]
[374139463,1753228248777,-663.37,0.00019807,2]
[374139464,1753228248786,-577.67,0.00019807,2]
[374139465,1753228248796,-460.0,0.00019809,2]
[374139466,1753228248806,-460.0,0.00019809,2]
[374139467,1753228248816,-460.0,0.0001981,2]
[374139468,1753228248826,-460.0,0.0001981,2]
[374139469,1753228248835,-460.0,0.0001981,2]
[374139470,1753228248844,-152.40367054,0.0001981,2]
[374139471,1753228248854,-569.11465255,0.0001981,2]
[374139472,1753228248864,-460.0,0.0001981,2]
[374139473,1753228248874,-592.90218151,0.0001981,2]
[374139474,1753228248884,-460.0,0.0001981,2]
[374139475,1753228248894,-460.0,0.0001981,2]
[374139476,1753228248904,-460.0,0.0001981,2]
[374139477,1753228248913,-460.0,0.0001981,2]
[374139478,1753228248923,-460.0,0.0001981,2]
[374139479,1753228248932,-460.0,0.0001981,2]
[374139480,1753228248942,-460.0,0.0001981,2]
[374139481,1753228248951,-460.0,0.0001981,2]
[374139482,1753228248960,-183.47769214,0.0001981,2]
[374139483,1753228248970,-605.38198395,0.0001981,2]
[374139484,1753228248979,-460.0,0.0001981,2]
[374139485,1753228248989,-534.79396424,0.0001981,2]
[374139486,1753228248998,-460.0,0.0001981,2]
[374139487,1753228249008,-460.0,0.0001981,2]
[374139488,1753228249019,-460.0,0.0001981,2]
[374139489,1753228249028,-460.0,0.0001981,2]
[374139490,1753228249038,-460.0,0.0001981,2]
[374139491,1753228249048,-460.0,0.0001981,2]
[374139492,1753228249058,-291.06636753,0.0001981,2]
[374139493,1753228249067,-460.0,0.0001981,2]
[374139494,1753228249076,-523.60763141,0.0001981,2]
[374139495,1753228249086,-460.0,0.0001981,2]
[374139496,1753228249095,-460.0,0.0001981,2]
[374139497,1753228249105,-460.0,0.0001981,2]
[374139498,1753228249115,-460.0,0.0001981,2]
[374139499,1753228249125,-292.2180772,0.0001981,2]
[374139500,1753228249135,-460.0,0.0001981,2]
[374139501,1753228249144,-460.0,0.0001981,2]
[374139502,1753228249154,-460.0,0.0001981,2]
[374139503,1753228249164,-154.83826796,0.0001981,2]
[374139504,1753228249174,-460.0,0.0001981,2]
[374139505,1753228249183,-460.0,0.0001981,2]
[374139506,1753228249192,-500.0,0.0001981,2]
[374139507,1753228249201,-460.0,0.0001981,2]
[374139508,1753228249211,-221.22568892,0.0001981,2]
[374139509,1753228249220,-460.0,0.0001981,2]
[374139510,1753228249230,-460.0,0.0001981,2]
[374139511,1753228249239,-460.0,0.0001981,2]
[374139512,1753228249248,-460.0,0.0001981,2]
[374139513,1753228249257,-460.0,0.0001981,2]
[374139514,1753228249268,-460.0,0.0001981,2]
[374139515,1753228249278,-460.0,0.0001981,2]
[374139516,1753228249287,-526.38,0.0001981,2]
[374139517,1753228249296,-622.44,0.0001981,2]
[374139518,1753228249306,-460.0,0.0001981,2]
[374139519,1753228249316,-460.0,0.0001981,2]
[374139520,1753228249325,-534.2883854,0.0001981,2]
[374139521,1753228249335,-460.0,0.0001981,2]
[374139522,1753228249344,-244.27372204,0.0001981,2]
[374139523,1753228249354,-460.0,0.0001981,2]
[374139524,1753228249363,-460.0,0.0001981,2]
[374139525,1753228249372,-460.0,0.0001981,2]
[374139526,1753228249382,-460.0,0.0001981,2]
[374139527,1753228249391,-460.0,0.0001981,2]
[374139528,1753228249400,-460.0,0.0001981,2]
[374139529,1753228249409,-460.0,0.0001981,2]
[374139530,1753228249419,-354.28114758,0.0001981,2]
[374139531,1753228249428,-460.0,0.0001981,2]
[374139532,1753228249437,-460.0,0.0001981,2]
[374139533,1753228249446,-460.0,0.0001981,2]
[374139534,1753228249455,-460.0,0.0001981,2]
[374139535,1753228249465,-460.0,0.0001981,2]
[374139536,1753228249474,-539.5,0.0001981,2]
[374139537,1753228249483,-460.0,0.0001981,2]
[374139538,1753228249492,-460.0,0.0001981,2]
[374139539,1753228249502,-460.0,0.0001981,2]
[374139540,1753228249511,-460.0,0.0001981,2]
[374139541,1753228249523,-460.0,0.0001981,2]
[374139542,1753228249532,-460.0,0.0001981,2]
[374139543,1753228249541,-460.0,0.0001981,2]
[374139544,1753228249550,-460.0,0.0001981,2]
[374139545,1753228249559,-460.0,0.0001981,2]
[374139546,1753228249567,-460.0,0.0001981,2]
[374139547,1753228249576,-460.0,0.0001981,2]
[374139548,1753228249585,-460.0,0.0001981,2]
[374139549,1753228249596,-494.46,0.00019811,2]
[374139550,1753228249605,-2195.3,0.00019811,2]
[374139551,1753228249618,-1358.51,0.00019811,2]
[374139552,1753228249627,-1239.57,0.00019811,2]
[374139553,1753228249636,-1658.01,0.00019811,2]
[374139554,1753228249645,-460.0,0.00019811,2]
[374139555,1753228249656,-2253.65,0.00019811,2]
[374139556,1753228249666,-1340.59,0.00019811,2]
[374139557,1753228249677,-1293.49,0.00019811,2]
[374139558,1753228249688,-200.53143426,0.00019813,2]
[374139559,1753228249698,-162.07201304,0.00019813,2]
[374139560,1753228249708,-151.0,0.00019813,2]
[374139561,1753228249718,-151.0,0.00019813,2]
[374139562,1753228249727,-151.0,0.00019813,2]
[374139563,1753228249737,-500.0,0.00019813,2]
[374139564,1753228249747,-151.0,0.00019813,2]
[374139565,1753228249757,-500.0,0.00019813,2]
[374139566,1753228249766,-151.0,0.00019813,2]
[374139567,1753228249777,-255.0,0.00019813,2]
[374139568,1753228249786,-3202.65456407,0.00019831,2]
[374139569,1753228249795,-360.0,0.00019848,2]
[374139570,1753228249804,-500.54494054,0.00019873,2]
[374139571,1753228249814,-500.0,0.00019873,2]
[374139572,1753228249824,-500.0,0.00019873,2]
[374139573,1753228249833,-500.0,0.00019873,2]
[374139574,1753228249842,-500.16605622,0.00019873,2]
[374139575,1753228249851,-500.0,0.00019873,2]
[374139576,1753228249861,-472.07520401,0.00019873,2]
[374139577,1753228249870,-500.0,0.00019873,2]
[374139578,1753228249879,-500.0,0.00019873,2]
[374139579,1753228249888,-500.0,0.00019873,2]
[374139580,1753228249898,-500.0,0.00019873,2]
[374139581,1753228249907,-160.25012645,0.00019873,2]
[374139582,1753228249917,-165.42282706,0.00019873,2]
[374139583,1753228249926,-500.0,0.00019873,2]
[374139584,1753228249935,-500.0,0.00019873,2]
[374139585,1753228249944,-500.0,0.00019873,2]
[374139586,1753228249954,-500.0,0.00019873,2]
[374139587,1753228249963,-500.0,0.00019873,2]
[374139588,1753228249973,-500.0,0.00019999,2]
[374139589,1753228249982,-618.76,0.00019999,2]
[374139590,1753228249991,-587.0,0.00020037,2]
[374139591,1753228250000,-1157.88,0.00020078,2]
[374139592,1753228250011,-1954.5,0.00020079,2]
[374139593,1753228250020,-1501.49,0.00020079,2]
[374139594,1753228250031,-1407.56,0.00020079,2]
[374139595,1753228250040,-460.0,0.00020079,2]
[374139596,1753228250050,-536.89,0.00020079,2]
[374139597,1753228250060,-553.16550915,0.00020081,2]
[374139598,1753228250069,-3206.05,0.00020081,2]
[374139599,1753228250079,-264.41632605,0.00020081,2]
[374139600,1753228250088,-385.43397086,0.00020081,2]
[374139601,1753228250098,-1605.14,0.00020081,2]
[374139602,1753228250108,-460.0,0.00020081,2]
[374139603,1753228250118,-460.0,0.00020081,2]
[374139604,1753228250129,-460.95,0.00020081,2]
[374139605,1753228250138,-460.0,0.00020081,2]
[374139606,1753228250148,-460.0,0.00020081,2]
[374139607,1753228250159,-460.0,0.00020081,2]
[374139608,1753228250250,-896.25,0.00020081,2]
[374139609,1753228250261,-514.65,0.00020081,2]
[374139610,1753228250271,-663.37,0.00020081,2]
[374139611,1753228250280,-460.0,0.00020083,2]
[374139612,1753228250289,-228.73,0.00020083,2]
[374139613,1753228250299,-460.0,0.00020084,2]
[374139614,1753228250308,-460.0,0.00020084,2]
[374139615,1753228250319,-317.05367112,0.00020084,2]
[374139616,1753228250328,-402.04809729,0.00020084,2]
[374139617,1753228250337,-188.63338733,0.00020084,2]
[374139618,1753228250346,-194.45581047,0.00020084,2]
[374139619,1753228250355,-460.0,0.00020084,2]
[374139620,1753228250364,-460.0,0.00020084,2]
[374139621,1753228250374,-460.0,0.00020084,2]
[374139622,1753228250383,-460.0,0.00020084,2]
[374139623,1753228250392,-460.0,0.00020084,2]
[374139624,1753228250401,-460.0,0.00020084,2]
[374139625,1753228250412,-460.0,0.00020084,2]
[374139626,1753228250421,-460.0,0.00020084,2]
[374139627,1753228250431,-460.0,0.00020084,2]
[374139628,1753228250440,-460.0,0.00020084,2]
[374139629,1753228250449,-526.38,0.00020084,2]
[374139630,1753228250458,-622.44,0.00020084,2]
[374139631,1753228250468,-460.0,0.00020084,2]
[374139632,1753228250477,-460.0,0.00020084,2]
[374139633,1753228250488,-460.0,0.00020084,2]
[374139634,1753228250498,-460.0,0.00020084,2]
[374139635,1753228250509,-460.0,0.00020084,2]
[374139636,1753228250518,-460.0,0.00020084,2]
[374139637,1753228250529,-460.0,0.00020084,2]
[374139638,1753228250538,-460.0,0.00020084,2]
[374139639,1753228250547,-460.0,0.00020084,2]
[374139640,1753228250556,-460.0,0.00020084,2]
[374139641,1753228250567,-460.0,0.00020084,2]
[374139642,1753228250576,-460.0,0.00020084,2]
[374139643,1753228250585,-460.0,0.00020084,2]
[374139644,1753228250595,-539.5,0.00020084,2]
[374139645,1753228250604,-460.0,0.00020084,2]
[374139646,1753228250616,-460.0,0.00020084,2]
[374139647,1753228250626,-460.0,0.00020084,2]
[374139648,1753228250635,-531.22017669,0.00020084,2]
[374139649,1753228250646,-460.0,0.00020084,2]
[374139650,1753228250658,-460.0,0.00020084,2]
[374139651,1753228250668,-460.0,0.00020084,2]
[374139652,1753228250678,-460.0,0.00020084,2]
[374139653,1753228250688,-460.0,0.00020084,2]
[374139654,1753228250699,-460.0,0.00020084,2]
[374139655,1753228250708,-460.0,0.00020084,2]
[374139656,1753228250718,-2195.3,0.00020085,2]
[374139657,1753228250727,-1358.51,0.00020085,2]
[374139658,1753228250737,-1239.57,0.00020085,2]
[374139659,1753228250747,-1658.01,0.00020085,2]
[374139660,1753228250756,-460.0,0.00020085,2]
[374139661,1753228250765,-2253.65,0.00020085,2]
[374139662,1753228250776,-1340.59,0.00020085,2]
[374139663,1753228250785,-1293.49,0.00020085,2]
[374139664,1753228250795,-151.0,0.00020087,2]
[374139665,1753228250804,-151.0,0.00020087,2]
[374139666,1753228250813,-500.0,0.00020087,2]
[374139667,1753228250822,-500.0,0.00020087,2]
[374139668,1753228250832,-151.0,0.00020087,2]
[374139669,1753228250841,-500.0,0.00020106,2]
[374139670,1753228250852,-450.0,0.00020106,2]
[374139671,1753228250861,-3202.65456407,0.00020107,2]
[374139672,1753228250870,-627.474464,0.00020187,2]
[374139673,1753228250879,-1157.88,0.00020352,2]
[374139674,1753228250889,-1954.5,0.00020353,2]
[374139675,1753228250898,-1501.49,0.00020353,2]
[374139676,1753228250907,-1407.56,0.00020353,2]
[374139677,1753228250917,-460.0,0.00020353,2]
[374139678,1753228250927,-536.89,0.00020353,2]
[374139679,1753228250937,-3206.05,0.00020355,2]
[374139680,1753228250947,-1605.14,0.00020355,2]
[374139681,1753228250956,-460.0,0.00020355,2]
[374139682,1753228250965,-460.0,0.00020355,2]
[374139683,1753228250974,-460.95,0.00020355,2]
[374139684,1753228250983,-460.0,0.00020355,2]
[374139685,1753228250992,-460.0,0.00020355,2]
[374139686,1753228251002,-460.0,0.00020355,2]
[374139687,1753228251011,-896.25,0.00020355,2]
[374139688,1753228251022,-514.65,0.00020355,2]
[374139689,1753228251032,-663.37,0.00020355,2]
[374139690,1753228251041,-460.0,0.00020356,2]
[374139691,1753228251050,-460.0,0.00020358,2]
[374139692,1753228251059,-460.0,0.00020358,2]
[374139693,1753228251069,-460.0,0.00020358,2]
[374139694,1753228251078,-460.0,0.00020358,2]
[374139695,1753228251088,-460.0,0.00020358,2]
[374139696,1753228251097,-460.0,0.00020358,2]
[374139697,1753228251107,-460.0,0.00020358,2]
[374139698,1753228251117,-460.0,0.00020358,2]
[374139699,1753228251126,-460.0,0.00020358,2]
[374139700,1753228251135,-460.0,0.00020358,2]
[374139701,1753228251144,-460.0,0.00020358,2]
[374139702,1753228251153,-526.38,0.00020358,2]
[374139703,1753228251162,-622.44,0.00020358,2]
[374139704,1753228251172,-460.0,0.00020358,2]
[374139705,1753228251181,-460.0,0.00020358,2]
[374139706,1753228251190,-275.45016382,0.00020358,2]
[374139707,1753228251200,-460.0,0.00020358,2]
[374139708,1753228251209,-460.0,0.00020358,2]
[374139709,1753228251218,-460.0,0.00020358,2]
[374139710,1753228251227,-460.0,0.00020358,2]
[374139711,1753228251236,-460.0,0.00020358,2]
[374139712,1753228251246,-460.0,0.00020358,2]
[374139713,1753228251255,-460.0,0.00020358,2]
[374139714,1753228251264,-460.0,0.00020358,2]
[374139715,1753228251275,-539.5,0.00020358,2]
[374139716,1753228251284,-460.0,0.00020358,2]
[374139717,1753228251294,-460.0,0.00020358,2]
[374139718,1753228251303,-460.0,0.00020358,2]
[374139719,1753228251312,-460.0,0.00020358,2]
[374139720,1753228251320,-460.0,0.00020358,2]
[374139721,1753228251329,-460.0,0.00020358,2]
[374139722,1753228251338,-178.47119342,0.00020358,2]
[374139723,1753228251347,-608.32,0.00020358,2]
[374139724,1753228251356,-460.0,0.00020358,2]
[374139725,1753228251365,-460.0,0.00020358,2]
[374139726,1753228251374,-2195.3,0.00020359,2]
[374139727,1753228251383,-1358.51,0.00020359,2]
[374139728,1753228251392,-1239.57,0.00020359,2]
[374139729,1753228251401,-1658.01,0.00020359,2]
[374139730,1753228251410,-460.0,0.00020359,2]
[374139731,1753228251419,-2253.65,0.00020359,2]
[374139732,1753228251430,-1340.59,0.00020359,2]
[374139733,1753228251440,-1293.49,0.00020359,2]
[374139734,1753228251449,-300.35049995,0.00020361,2]
[374139735,1753228251458,-198.0,0.00020361,2]
[374139736,1753228251468,-500.0,0.00020361,2]
[374139737,1753228251477,-500.0,0.00020361,2]
[374139738,1753228251487,-230.68948773,0.00020361,2]
[374139739,1753228251496,-3202.65456407,0.00020383,3]
[374139740,1753228251505,-460.0,0.00020396,2]
[374139741,1753228251515,-761.03102436,0.00020421,2]
[374139742,1753228251525,-982.49357615,0.00020421,2]
[374139743,1753228251535,-1000.0,0.00020421,2]
[374139744,1753228251544,-473.57592756,0.00020421,2]
[374139745,1753228251554,-1000.0,0.00020421,2]
[374139746,1753228251566,-500.0,0.00020421,2]
[374139747,1753228251575,-1000.0,0.00020421,2]
[374139748,1753228251584,-619.586,0.00020626,2]
[374139749,1753228251593,-1157.88,0.00020626,2]
[374139750,1753228251603,-1954.5,0.00020627,2]
[374139751,1753228251617,-1501.49,0.00020627,2]
[374139752,1753228251626,-1407.56,0.00020627,2]
[374139753,1753228251635,-460.0,0.00020627,2]
[374139754,1753228251646,-536.89,0.00020627,2]
[374139755,1753228251655,-178.749928,0.00020628,2]
[374139756,1753228251664,-3206.05,0.00020629,2]
[374139757,1753228251674,-1605.14,0.00020629,2]
[374139758,1753228251684,-363.96,0.00020629,2]
[374139759,1753228251694,-460.0,0.00020629,2]
[374139760,1753228251704,-460.95,0.00020629,2]
[374139761,1753228251713,-460.0,0.00020629,2]
[374139762,1753228251723,-460.0,0.00020629,2]
[374139763,1753228251732,-896.25,0.00020629,2]
[374139764,1753228251741,-514.65,0.00020629,2]
[374139765,1753228251751,-663.37,0.00020629,2]
[374139766,1753228251760,-460.0,0.0002063,2]
[374139767,1753228251771,-415.13924751,0.00020632,2]
[374139768,1753228251780,-460.0,0.00020632,2]
[374139769,1753228251789,-460.0,0.00020632,2]
[374139770,1753228251798,-460.0,0.00020632,2]
[374139771,1753228251807,-460.0,0.00020632,2]
[374139772,1753228251816,-460.0,0.00020632,2]
[374139773,1753228251825,-460.0,0.00020632,2]
[374139774,1753228251834,-460.0,0.00020632,2]
[374139775,1753228251844,-460.0,0.00020632,2]
[374139776,1753228251853,-460.0,0.00020632,2]
[374139777,1753228251863,-460.0,0.00020632,2]
[374139778,1753228251872,-526.38,0.00020632,2]
[374139779,1753228251882,-622.44,0.00020632,2]
[374139780,1753228251891,-460.0,0.00020632,2]
[374139781,1753228251900,-460.0,0.00020632,2]
[374139782,1753228251909,-460.0,0.00020632,2]
[374139783,1753228251919,-460.0,0.00020632,2]
[374139784,1753228251928,-460.0,0.00020632,2]
[374139785,1753228251938,-588.73,0.00020632,2]
[374139786,1753228251947,-460.0,0.00020632,2]
[374139787,1753228251956,-460.0,0.00020632,2]
[374139788,1753228251966,-460.0,0.00020632,2]
[374139789,1753228252043,-460.0,0.00020632,2]
[374139790,1753228252061,-539.5,0.00020632,2]
[374139791,1753228252070,-460.0,0.00020632,2]
[374139792,1753228252079,-460.0,0.00020632,2]
[374139793,1753228252089,-460.0,0.00020632,2]
[374139794,1753228252098,-460.0,0.00020632,2]
[374139795,1753228252107,-460.0,0.00020632,2]
[374139796,1753228252117,-460.0,0.00020632,2]
[374139797,1753228252126,-460.0,0.00020632,2]
[374139798,1753228252135,-460.0,0.00020632,2]
[374139799,1753228252144,-2195.3,0.00020633,2]
[374139800,1753228252153,-1358.51,0.00020633,2]
[374139801,1753228252162,-1239.57,0.00020633,2]
[374139802,1753228252171,-1658.01,0.00020633,2]
[374139803,1753228252180,-460.0,0.00020633,2]
[374139804,1753228252189,-2253.65,0.00020633,2]
[374139805,1753228252198,-1340.59,0.00020633,2]
[374139806,1753228252207,-1293.49,0.00020633,2]
[374139807,1753228252216,-500.0,0.00020635,2]
[374139808,1753228252225,-500.0,0.00020635,2]
[374139809,1753228252234,-3202.65456407,0.00020659,3]
[374139810,1753228252243,-158.85678577,0.00020875,2]
[374139811,1753228252252,-1157.88,0.000209,2]
[374139812,1753228252261,-1954.5,0.00020901,2]
[374139813,1753228252271,-1501.49,0.00020901,2]
[374139814,1753228252280,-1407.56,0.00020901,2]
[374139815,1753228252290,-460.0,0.00020901,2]
[374139816,1753228252299,-536.89,0.00020901,2]
[374139817,1753228252308,-3206.05,0.00020903,2]
[374139818,1753228252318,-1605.14,0.00020903,2]
[374139819,1753228252327,-460.0,0.00020903,2]
[374139820,1753228252336,-460.95,0.00020903,2]
[374139821,1753228252346,-605.83,0.00020903,2]
[374139822,1753228252355,-460.0,0.00020903,2]
[374139823,1753228252364,-896.25,0.00020903,2]
[374139824,1753228252373,-514.65,0.00020903,2]
[374139825,1753228252382,-663.37,0.00020903,2]
[374139826,1753228252391,-460.0,0.00020904,2]
[374139827,1753228252402,-460.0,0.00020906,2]
[374139828,1753228252413,-460.0,0.00020906,2]
[374139829,1753228252422,-460.0,0.00020906,2]
[374139830,1753228252432,-460.0,0.00020906,2]
[374139831,1753228252442,-460.0,0.00020906,2]
[374139832,1753228252451,-460.0,0.00020906,2]
[374139833,1753228252460,-460.0,0.00020906,2]
[374139834,1753228252469,-460.0,0.00020906,2]
[374139835,1753228252479,-460.0,0.00020906,2]
[374139836,1753228252488,-460.0,0.00020906,2]
[374139837,1753228252497,-526.38,0.00020906,2]
[374139838,1753228252507,-622.44,0.00020906,2]
[374139839,1753228252516,-460.0,0.00020906,2]
[374139840,1753228252526,-460.0,0.00020906,2]
[374139841,1753228252535,-460.0,0.00020906,2]
[374139842,1753228252544,-304.60730613,0.00020906,2]
[374139843,1753228252553,-460.0,0.00020906,2]
[374139844,1753228252562,-460.0,0.00020906,2]
[374139845,1753228252571,-460.0,0.00020906,2]
[374139846,1753228252580,-460.0,0.00020906,2]
[374139847,1753228252589,-460.0,0.00020906,2]
[374139848,1753228252598,-539.5,0.00020906,2]
[374139849,1753228252608,-460.0,0.00020906,2]
[374139850,1753228252620,-460.0,0.00020906,2]
[374139851,1753228252629,-460.0,0.00020906,2]
[374139852,1753228252638,-460.0,0.00020906,2]
[374139853,1753228252647,-460.0,0.00020906,2]
[374139854,1753228252658,-460.0,0.00020906,2]
[374139855,1753228252667,-460.0,0.00020906,2]
[374139856,1753228252676,-2195.3,0.00020907,2]
[374139857,1753228252685,-1358.51,0.00020907,2]
[374139858,1753228252695,-1239.57,0.00020907,2]
[374139859,1753228252706,-1658.01,0.00020907,2]
[374139860,1753228252716,-460.0,0.00020907,2]
[374139861,1753228252724,-2253.65,0.00020907,2]
[374139862,1753228252734,-1340.59,0.00020907,2]
[374139863,1753228252744,-1293.49,0.00020907,2]
[374139864,1753228252753,-435.36212605,0.00020909,2]
[374139865,1753228252763,-305.0,0.00020909,2]
[374139866,1753228252773,-3202.65456407,0.00020934,4]
[374139867,1753228252783,-320.0,0.00020944,2]
[374139868,1753228252792,-1228.05112829,0.00020968,2]
[374139869,1753228252802,-385.4992409,0.00020968,2]
[374139870,1753228252812,-500.0,0.00020968,2]
[374139871,1753228252822,-151.0,0.00021,3]
[374139872,1753228252831,-3462.41494755,0.0002102,2]
[374139873,1753228252840,-9436.3509864,0.00021091,2]
[374139874,1753228252849,-151.0,0.000211,4]
[374139875,1753228252858,-151.0,0.00021143,2]
[374139876,1753228252868,-1157.88,0.00021174,2]
[374139877,1753228252877,-1954.5,0.00021175,2]
[374139878,1753228252887,-1501.49,0.00021175,2]
[374139879,1753228252897,-1407.56,0.00021175,2]
[374139880,1753228252906,-171.05443457,0.00021175,2]
[374139881,1753228252915,-536.89,0.00021175,2]
[374139882,1753228252925,-3206.05,0.00021177,2]
[374139883,1753228252935,-1605.14,0.00021177,2]
[374139884,1753228252944,-460.0,0.00021177,2]
[374139885,1753228252953,-460.95,0.00021177,2]
[374139886,1753228252963,-460.0,0.00021177,2]
[374139887,1753228252972,-896.25,0.00021177,2]
[374139888,1753228252981,-514.65,0.00021177,2]
[374139889,1753228252991,-663.37,0.00021177,2]
[374139890,1753228253000,-460.0,0.00021178,2]
[374139891,1753228253009,-460.0,0.0002118,2]
[374139892,1753228253018,-460.0,0.0002118,2]
[374139893,1753228253030,-460.0,0.0002118,2]
[374139894,1753228253039,-460.0,0.0002118,2]
[374139895,1753228253049,-460.0,0.0002118,2]
[374139896,1753228253058,-460.0,0.0002118,2]
[374139897,1753228253068,-460.0,0.0002118,2]
[374139898,1753228253077,-460.0,0.0002118,2]
[374139899,1753228253087,-460.0,0.0002118,2]
[374139900,1753228253096,-460.0,0.0002118,2]
[374139901,1753228253105,-526.38,0.0002118,2]
[374139902,1753228253114,-622.44,0.0002118,2]
[374139903,1753228253124,-460.0,0.0002118,2]
[374139904,1753228253134,-460.0,0.0002118,2]
[374139905,1753228253143,-460.0,0.0002118,2]
[374139906,1753228253152,-460.0,0.0002118,2]
[374139907,1753228253161,-377.95,0.0002118,2]
[374139908,1753228253170,-392.27,0.0002118,2]
[374139909,1753228253179,-539.5,0.0002118,2]
[374139910,1753228253189,-460.0,0.0002118,2]
[374139911,1753228253198,-554.04,0.0002118,2]
[374139912,1753228253207,-460.0,0.0002118,2]
[374139913,1753228253217,-460.0,0.0002118,2]
[374139914,1753228253227,-460.0,0.0002118,2]
[374139915,1753228253237,-460.0,0.0002118,2]
[374139916,1753228253247,-2195.3,0.00021181,2]
[374139917,1753228253256,-1358.51,0.00021181,2]
[374139918,1753228253265,-1239.57,0.00021181,2]
[374139919,1753228253275,-1658.01,0.00021181,2]
[374139920,1753228253284,-460.0,0.00021181,2]
[374139921,1753228253294,-2253.65,0.00021181,2]
[374139922,1753228253308,-1340.59,0.00021181,2]
[374139923,1753228253317,-1293.49,0.00021181,2]
[374139924,1753228253327,-3202.65456407,0.0002121,4]
[374139925,1753228253338,-1157.88,0.00021448,2]
[374139926,1753228253347,-1954.5,0.00021449,2]
[374139927,1753228253356,-1501.49,0.00021449,2]
[374139928,1753228253366,-1407.56,0.00021449,2]
[374139929,1753228253375,-536.89,0.00021449,2]
[374139930,1753228253384,-3206.05,0.00021451,2]
[374139931,1753228253393,-1605.14,0.00021451,2]
[374139932,1753228253403,-460.0,0.00021451,2]
[374139933,1753228253411,-460.95,0.00021451,2]